[Event "AI Cup Div-1 2023"]
[Site "Online"]
[Date "2023.09.25"]
[Round "1.2"]
[White "Giri, Anish"]
[Black "Nepomniachtchi, Ian"]
[Result "0-1"]
[Annotator "TA"]
[ECO "D00"]
[WhiteElo "2760"]
[BlackElo "2771"]
[PlyCount "102"]
[EventDate "2023.09.18"]
[EventType "k.o."]
[EventCountry "NET"]
[SourceTitle "playchess.com"]
[Source "ChessBase"]
[SourceQuality "1"]
[TimeControl "900+3"]

{[%evp 9,102,0,0,-3,35,64,52,53,58,0,0,0,0,-1,0,-8,0,-20,0,-14,-5,-12,0,-63,0,0,0,-42,-42,-42,-31,-52,-7,-8,0,-7,-8,-6,-6,-16,-10,-83,-29,-85,-42,-51,0,0,0,-5,0,0,0,0,0,-47,-60,-64,-68,-229,-225,-272,-177,-182,-170,-197,-188,-476,-465,-671,-745,-802,-788,-1940,-1859,-1729,-1664,-1381,-903,-1152,-1075,-1137,-1077,-977,-932,-1158,-1158,-1110,-1110,-1110,-1001,-946,-931,-924,-884]} 1. d4 {[%emt 0:00:04]} Nf6 {[%emt 0:00:05]} 2. Bf4 {[%emt 0:00:01]} d5 {[%emt 0:00:04]} 3. e3 {[%emt 0:00:03]} c5 {[%emt 0:00:01]} 4. Nd2 {[%emt 0:00:01]} Nc6 {[%emt 0:00:02]} 5. c3 {[%emt 0:00:01]} Bf5 {[%emt 0:00:01]} 6. Qb3 {[%emt 0:00:05] D00: 1 d4 d5: Unusual lines.} Qb6 {[%emt 0:00:05]} 7. dxc5 {[%emt 0:02:02]} Qxb3 {[%emt 0:00:02]} 8. axb3 {[%emt 0:00:44] White is slightly better.} e5 {[%emt 0:00:03]} 9. Bg5 {[%emt 0:00:02]} (9. Bg3 $14) 9... Bxc5 $11 {[%emt 0:00:02]} 10. Bxf6 {[%emt 0:01:15]} gxf6 {[%emt 0:00:00]} 11. b4 {[%emt 0:00:02]} Bb6 {[%emt 0:00:04]} 12. Ngf3 {[%emt 0:00:20]} O-O-O {[%emt 0:00:03]} 13. Bb5 {[%emt 0:01:14] [#]} Kb8 $146 {[%emt 0:01:02]} ({Predecessor:} 13... Rhg8 14. Nh4 Be6 15. O-O d4 16. exd4 exd4 17. Ndf3 Ne5 18. Rfe1 a6 19. Bf1 dxc3 20. bxc3 {0-1 Bonino,M (1946)-Michalczak,T (2325) Stein am Rhein op 2nd 2014 (2)}) 14. O-O {[%emt 0:00:04]} Rhg8 {[%emt 0:01:34]} 15. Rfe1 {[%emt 0:00:06]} Be6 {[%emt 0:00:05]} 16. Ba4 {[%emt 0:00:22]} (16. Bxc6 $11 bxc6 17. Ra4) 16... d4 {[%emt 0:00:25]} ({Better is} 16... e4 $15 17. Nd4 Nxd4 18. cxd4 f5) 17. exd4 $1 {[%emt 0:00:35]} exd4 {[%emt 0:00:03]} 18. Ne4 {[%emt 0:02:33]} dxc3 {[%emt 0:00:04]} (18... Ne5 {simplifies} 19. Nxe5 fxe5 20. g3 h5) 19. bxc3 {[%emt 0:00:02]} Rd3 {[%emt 0:00:24]} 20. Nxf6 {[%emt 0:04:21]} Rg6 {[%emt 0:02:11]} 21. Bxc6 {[%emt 0:00:03][%cal Oe1e6] [#] Hoping for Rxe6!} (21. Nxh7 $2 Rxf3 22. Bxc6 bxc6 $19) 21... bxc6 {[%emt 0:00:00]} (21... Rxf6 {simplifies} 22. Be4 Rxc3 23. Bxh7 Rf4) 22. Rxe6 {[%emt 0:00:43]} fxe6 {[%emt 0:00:55]} 23. Ne5 {[%emt 0:00:01] A dynamic duo of knights.} Rxc3 {[%emt 0:00:58] aiming for ...Rg7.} 24. Nxg6 {[%emt 0:01:09]} hxg6 {[%emt 0:00:00][%mdl 4096] Endgame KRB-KRN} 25. g3 {[%emt 0:00:02]} (25. Nd7+ $11 Kc7 26. Nxb6 axb6 27. Kf1) 25... Kc7 {[%emt 0:00:16]} (25... Bd4 $17 26. Nd7+ Kc7) 26. Re1 {[%emt 0:00:04]} (26. Rb1 $11 {remains equal.}) 26... Rc2 {[%emt 0:00:05]} 27. Ng4 {[%emt 0:00:04]} Kd6 {[%emt 0:00:09]} (27... Rc4 $15 28. Ne5 Rxb4 29. Nxg6 Rb2 30. Rxe6 Rxf2) 28. Rd1+ {[%emt 0:00:07]} Ke7 {[%emt 0:00:02]} 29. Kg2 {[%emt 0:00:08]} Rb2 {[%emt 0:00:18]} 30. h4 {[%emt 0:00:02]} Rxb4 {[%emt 0:00:11][%cal Ob6d4]} 31. Ne5 {[%emt 0:00:01][%csl LRc6,LRg6]} Kf6 {[%emt 0:00:06]} 32. Nd7+ {[%emt 0:00:10]} (32. f4 $11) 32... Kf5 $15 {[%emt 0:00:11]} 33. Re1 {[%emt 0:00:02] White wants to mate with Re5+.} Bd4 {[%emt 0:00:03] Wards off Re5+} 34. Kh3 $2 {[%emt 0:00:07] Now White is beyond hope.} (34. g4+ $15 Kxg4 35. Rxe6) 34... e5 $19 {[%emt 0:00:05]} (34... Bxf2 $2 35. Re5#) 35. g4+ {[%emt 0:00:03]} Ke6 {[%emt 0:00:03]} 36. Nf8+ {[%emt 0:00:00]} Kf7 {[%emt 0:00:04]} 37. Nd7 {[%emt 0:00:01] [#]} Rb5 {[%emt 0:00:16] White must now prevent ...Ke7.} (37... Bxf2 38. Rf1 Rb2 39. Nxe5+ Kg7 40. h5 $15) 38. h5 $2 {[%emt 0:00:03]} (38. Re4 {was forced.}) 38... gxh5 {[%emt 0:00:13] Black is clearly winning.} (38... Bxf2 39. Rf1 gxh5 40. Rxf2+ Ke7 41. Nf6 hxg4+ 42. Kxg4 $11) 39. gxh5 {[%emt 0:00:00]} (39. Rc1 $142 hxg4+ 40. Kxg4) 39... Ke7 {[%emt 0:00:02]} (39... Bxf2 40. Rf1 Ke7 41. Rxf2 Kxd7 42. h6 $11) 40. h6 {[%emt 0:00:05]} Kxd7 {[%emt 0:00:01] KRB-KR} 41. h7 {[%emt 0:00:01]} Rb8 {[%emt 0:00:02] ...Rh8 would be deadly.} (41... Bxf2 $2 42. Rd1+ (42. h8=R $2 {loses.} Rb3+ 43. Kg2 Bxe1 $19) 42... Rd5 43. Rxd5+ (43. h8=R $2 Rxd1 44. Rh7+ Kd6 $19) 43... cxd5 44. h8=Q $18 (44. h8=R $2 Kd6 $19)) 42. Kg4 {[%emt 0:00:08]} Rh8 {[%emt 0:00:01]} 43. Rh1 {[%emt 0:00:01]} Ke6 {[%emt 0:00:04]} 44. Kg5 {[%emt 0:00:03]} Kf7 {[%emt 0:00:06]} 45. Rh6 {[%emt 0:00:06]} c5 {[%emt 0:00:26]} 46. Rc6 {[%emt 0:00:02]} e4 {[%emt 0:00:01]} ({Worse is} 46... Rxh7 47. Rc7+ Ke6 48. Rxh7 $19) 47. Kf5 {[%emt 0:00:04]} Rxh7 {[%emt 0:00:07]} (47... Bxf2 48. Rc7+ Kf8 49. Kxe4 $19) 48. Rc7+ {[%emt 0:00:01]} Kg8 {[%emt 0:00:01]} 49. Rc8+ {[%emt 0:00:00]} Kg7 {[%emt 0:00:00]} 50. Rc7+ {[%emt 0:00:02]} Kh6 {[%emt 0:00:01]} 51. Rc6+ {[%emt 0:00:01]} Kh5 {[%emt 0:00:01] Weighted Error Value: White=0.55/Black=0.28 (precise)} 0-1

[Event "AI Cup Div-1 2023"]
[Site "Online"]
[Date "2023.09.25"]
[Round "1.2"]
[White "Mamedyarov, Shakhriyar"]
[Black "Lazavik, Denis"]
[Result "1/2-1/2"]
[Annotator "TA"]
[ECO "D37"]
[WhiteElo "2734"]
[BlackElo "2560"]
[PlyCount "80"]
[EventDate "2023.09.18"]
[EventType "k.o."]
[EventCountry "NET"]
[SourceTitle "playchess.com"]
[Source "ChessBase"]
[SourceQuality "1"]
[TimeControl "900+3"]

{[%evp 11,80,8,22,2,18,12,28,0,0,0,0,0,0,0,0,0,0,-27,-18,-53,-50,-71,-76,-82,-59,-57,-3,-89,-64,-73,-62,-78,-77,-64,-64,-72,-80,-80,-4,-4,-4,-4,-4,-4,0,-5,0,-4,0,0,0,0,0,0,0,0,0,0,0,0,0,-197,-63,-58,0,0,0,0,0,0,0]} 1. d4 {[%emt 0:00:06]} Nf6 {[%emt 0:00:06]} 2. c4 {[%emt 0:00:03]} e6 {[%emt 0:00:01]} 3. Nf3 {[%emt 0:00:01]} d5 {[%emt 0:00:01]} 4. Nc3 {[%emt 0:00:01]} Be7 {[%emt 0:00:01]} 5. Bf4 {[%emt 0:00:02]} O-O {[%emt 0:00:02]} 6. e3 {[%emt 0:00:02]} Nbd7 {[%emt 0:00:03]} 7. c5 {[%emt 0:00:04] D37: Queen's Gambit Declined: 5 Bf4.} c6 {[%emt 0:00:05]} 8. b4 {[%emt 0:00:03][%cal Bb2b4,Bb4b5][%mdl 32]} b6 {[%emt 0:00:03]} 9. h4 $1 {[%emt 0:00:06][%mdl 4] White has an edge. is more profitable than 9.Bd3 at the moment.} h6 {[%emt 0:00:12]} 10. Bd3 {[%emt 0:00:14]} a5 {[%emt 0:00:03]} 11. a3 {[%emt 0:00:02]} Ba6 {[%emt 0:00:02] [#] ...Bxd3 would be deadly.} 12. b5 $146 {[%emt 0:00:09]} ({Predecessor:} 12. Bxa6 Rxa6 13. b5 cxb5 14. c6 Qc8 15. c7 b4 16. Nb5 a4 17. Qc1 Ne4 18. Qc6 Nb8 19. cxb8=N Ra5 20. O-O g5 21. hxg5 hxg5 22. Bc7 {1-0 Makkar,R (2399)-Berry,N (2240) Newcastle EJCOA 4th 2022 (1)}) 12... Bb7 {[%emt 0:00:35]} 13. cxb6 {[%emt 0:00:05]} Qxb6 {[%emt 0:00:31][%cal Of6e4]} 14. O-O {[%emt 0:00:21]} Rfc8 {[%emt 0:00:48]} 15. bxc6 {[%emt 0:00:39]} (15. Ne5 {looks sharper.} Nxe5 16. dxe5 Ne4 17. Bxe4 cxb5 18. Nxd5 Bxd5 19. Bxd5 exd5 20. Qxd5 Rd8 21. Qf3) 15... Bxc6 {[%emt 0:00:11]} ({Much weaker is} 15... Qxc6 16. Nb5 $11) 16. Ne5 {[%emt 0:01:56]} Nxe5 {[%emt 0:00:29]} 17. Bxe5 {[%emt 0:00:00]} Nd7 {[%emt 0:01:11]} 18. Bf4 {[%emt 0:00:22]} Qd8 {[%emt 0:00:20]} (18... a4 $15) 19. g3 {[%emt 0:00:30]} (19. Qe2 $11 {remains equal.}) 19... a4 $17 {[%emt 0:01:09]} 20. Qe2 {[%emt 0:00:57]} Qa5 {[%emt 0:00:29] Repels Ba6} 21. Nb5 {[%emt 0:01:06] [#]} Bxb5 $1 {[%emt 0:00:34]} 22. Bxb5 {[%emt 0:00:00]} Nf6 {[%emt 0:00:05]} 23. Be5 {[%emt 0:00:52]} Ne4 {[%emt 0:01:26]} 24. Bd3 {[%emt 0:00:32]} Qd2 {[%emt 0:00:41]} (24... Bf8 $17 {Hoping for ...Qd2.} 25. Bxe4 dxe4) 25. Qg4 $1 $11 {[%emt 0:00:17][%csl Ge5,LRe4,LRg7][%cal Rg4g7]} Nf6 {[%emt 0:00:03]} 26. Bxf6 {[%emt 0:00:24]} Bxf6 {[%emt 0:00:02]} 27. Rfd1 {[%emt 0:00:07]} Qc3 {[%emt 0:00:14]} 28. Qe2 {[%emt 0:00:23]} Rab8 {[%emt 0:00:27]} 29. Bb5 {[%emt 0:01:06]} Qa5 {[%emt 0:00:13]} 30. Rdb1 {[%emt 0:00:10]} Be7 {[%emt 0:00:30]} 31. Bd7 {[%emt 0:00:14]} Rd8 {[%emt 0:02:07] White must now prevent ...Rxb1+.} 32. Rxb8 {[%emt 0:00:40]} Rxb8 {[%emt 0:00:00]} 33. Qc2 {[%emt 0:00:03]} Ra8 {[%emt 0:00:10]} 34. Rb1 {[%emt 0:01:53]} Bxa3 {[%emt 0:00:36]} 35. Bc6 {[%emt 0:00:03]} Ra7 {[%emt 0:02:34] aiming for ...Bd6.} 36. Rb5 $2 {[%emt 0:00:44]} ({Not} 36. Rb8+ $2 Bf8 37. Kg2 a3 $19) (36. Ra1 $1 $11 {and White stays safe.} Qb4 37. Kg2) 36... Qc7 {[%emt 0:00:15]} (36... Qe1+ $19 37. Kg2 Bd6) 37. Rb1 $15 {[%emt 0:00:01]} Bf8 {[%emt 0:00:13]} ({Black should try} 37... Bd6 $15 38. Bxa4 Bxg3 {[%mdl 64] Demolition}) 38. Bxa4 $11 {[%emt 0:00:02] The position is equal.} Qxc2 {[%emt 0:00:00]} 39. Bxc2 {[%emt 0:00:00]} h5 {[%emt 0:00:02]} 40. Kg2 {[%emt 0:00:17]} g6 {[%emt 0:00:03] Weighted Error Value: White=0.16 (very precise) /Black=0.15 (very precise)} 1/2-1/2

[Event "AI Cup Div-1 2023"]
[Site "Online"]
[Date "2023.09.25"]
[Round "1.2"]
[White "Vachier-Lagrave, Maxime"]
[Black "Firouzja, Alireza"]
[Result "1/2-1/2"]
[Annotator "TA"]
[ECO "C43"]
[WhiteElo "2727"]
[BlackElo "2777"]
[PlyCount "61"]
[EventDate "2023.09.18"]
[EventType "k.o."]
[EventCountry "NET"]
[SourceTitle "playchess.com"]
[Source "ChessBase"]
[SourceQuality "1"]
[TimeControl "900+3"]

{[%evp 16,61,1,0,0,0,8,6,8,16,10,-24,-8,-31,0,0,0,-7,0,0,0,-10,0,-10,-10,-11,-15,-15,-15,-19,-15,-17,3,0,0,-7,0,0,0,0,0,0,0,0,0,0,0,0]} 1. e4 {[%emt 0:00:05]} e5 {[%emt 0:00:05]} 2. Nf3 {[%emt 0:00:01]} Nf6 {[%emt 0:00:00]} 3. d4 {[%emt 0:00:37]} Nxe4 {[%emt 0:00:03]} 4. Bd3 {[%emt 0:00:00]} d5 {[%emt 0:00:01]} 5. Nxe5 {[%emt 0:00:03]} Nd7 {[%emt 0:00:02]} 6. Nc3 {[%emt 0:00:16]} Nxc3 {[%emt 0:00:18]} 7. bxc3 {[%emt 0:00:03]} Bd6 {[%emt 0:00:01]} 8. O-O {[%emt 0:00:47]} O-O {[%emt 0:00:05]} 9. Re1 {[%emt 0:00:06]} c5 $1 {[%emt 0:00:03] The main line 9...c5 scores better than 9...Bxe5. C43: Petroff Defence: 3 d4.} 10. Nxd7 {[%emt 0:00:49]} Qxd7 {[%emt 0:00:04]} 11. dxc5 {[%emt 0:00:23]} Bxc5 {[%emt 0:00:03]} 12. Qh5 {[%emt 0:00:13][%csl Gd3][%cal Rh5h7] [#]} h6 {[%emt 0:00:12] [#]} 13. Bb2 $146 {[%emt 0:05:06]} ({Predecessor:} 13. Be3 Bxe3 14. Rxe3 Qd6 15. Qh4 Bd7 16. Qd4 Rfe8 17. Rxe8+ Bxe8 18. c4 Bc6 19. Be4 {½-½ Sevian,S (2654)-Dominguez Perez,L (2760) USA-ch Saint Louis 2021 (8)}) 13... Qc6 {[%emt 0:01:02]} (13... Qd6 {simplifies} 14. Qh4 Qd8 15. Qxd8 Rxd8 16. a4 Bd7) 14. Re2 {[%emt 0:00:05]} Qb6 {[%emt 0:03:15]} 15. Bc1 {[%emt 0:00:17] The position is equal.} Qd6 {[%emt 0:01:36]} 16. Bg5 {[%emt 0:00:26]} Qc6 {[%emt 0:01:37]} (16... hxg5 $2 17. Qh7#) 17. Rae1 {[%emt 0:00:38]} Bd7 {[%emt 0:00:07]} 18. Bf4 {[%emt 0:01:01]} Rae8 {[%emt 0:00:46]} 19. h3 {[%emt 0:00:32]} Rxe2 {[%emt 0:00:29]} 20. Rxe2 {[%emt 0:00:02]} Re8 {[%emt 0:01:05]} 21. Rxe8+ {[%emt 0:00:20]} Bxe8 {[%emt 0:00:02]} 22. Qf5 {[%emt 0:00:01] [#] Black must now prevent Qh7+.} g6 {[%emt 0:00:04]} 23. Qe5 {[%emt 0:00:02]} Bf8 {[%emt 0:00:13]} 24. Qe3 {[%emt 0:00:08]} a6 {[%emt 0:00:46]} 25. h4 {[%emt 0:01:37]} Bd7 {[%emt 0:00:56]} 26. Bxh6 {[%emt 0:00:43]} Bxh6 {[%emt 0:00:43]} 27. Qxh6 {[%emt 0:00:00]} Qxc3 {[%emt 0:00:02]} 28. Qg5 {[%emt 0:00:17] Qd8+ would be deadly.} Bb5 {[%emt 0:00:38]} 29. Bxb5 {[%emt 0:00:45]} axb5 {[%emt 0:00:03]} 30. h5 {[%emt 0:00:10]} Qxc2 {[%emt 0:00:49] Threatens to win with ...Qd1+.} 31. Qxd5 {[%emt 0:00:22] An interesting draw.   Weighted Error Value: White=0.05 (flawless) /Black=0.05 (flawless)} 1/2-1/2

[Event "AI Cup Div-1 2023"]
[Site "Online"]
[Date "2023.09.25"]
[Round "1.3"]
[White "Carlsen, Magnus"]
[Black "Nakamura, Hikaru"]
[Result "1-0"]
[Annotator "TA"]
[ECO "E94"]
[WhiteElo "2839"]
[BlackElo "2780"]
[PlyCount "81"]
[EventDate "2023.09.18"]
[EventType "k.o."]
[EventCountry "NET"]
[SourceTitle "playchess.com"]
[Source "ChessBase"]
[SourceQuality "1"]
[TimeControl "900+3"]

{[%evp 19,81,15,56,40,51,44,52,0,79,85,92,77,76,62,85,62,51,46,79,79,75,83,76,72,71,79,64,38,174,85,150,142,266,275,266,272,433,431,422,425,427,426,415,424,472,441,543,537,534,529,758,484,811,896,811,914,907,896,29995,29994,29994,29988,29995,29990]} 1. Nf3 {[%emt 0:00:03]} Nf6 {[%emt 0:00:13]} 2. c4 {[%emt 0:00:02]} d6 {[%emt 0:00:13]} 3. Nc3 {[%emt 0:00:08]} g6 {[%emt 0:00:55]} 4. e4 {[%emt 0:00:04]} Bg7 {[%emt 0:00:09]} 5. d4 {[%emt 0:00:01]} O-O {[%emt 0:00:02]} 6. Be2 {[%emt 0:00:01]} Na6 {[%emt 0:00:39]} 7. O-O {[%emt 0:00:07]} e5 {[%emt 0:00:03]} 8. Be3 {[%emt 0:00:05]} Ng4 {[%emt 0:00:15]} 9. Bg5 {[%emt 0:00:02]} Qe8 {[%emt 0:00:01]} 10. dxe5 {[%emt 0:01:22]} dxe5 {[%emt 0:00:02]} 11. Qc1 {[%emt 0:00:00] E94: King's Indian: Classical: 6 Be2 e5 7 0-0: Various Black 7th moves.} (11. h3 $5 {[%cal Rh3g4]} f6 12. Qd5+ Rf7 13. Bd2 $14 (13. hxg4 c6 $11)) 11... h6 {[%emt 0:00:52]} (11... c6 12. Rd1 f6 13. Bd2 f5 14. h3 Nf6 15. exf5 Bxf5 16. Bh6 Bxh6 17. Qxh6 e4 18. Nh4 Qe5 19. g4 Be6 20. Qe3 Rae8 21. f4 Qc5 22. Ng2 h5 23. Qxc5 Nxc5 24. Ne3 hxg4 25. hxg4 Nfd7 26. Rf1 Re7 {0-1 Carlsen,M (2776)-Nakamura,H (2699) Gjovik Aker CC Rapid 2009 (3)}) 12. Bd2 {[%emt 0:00:02]} Kh7 {[%emt 0:00:02] [#]} 13. c5 {[%emt 0:00:36]} c6 {[%emt 0:00:21]} (13... Nxc5 $11 14. Nd5 {[%mdl 64] Discovered Attack} Qc6) 14. Bxa6 $16 {[%emt 0:01:48]} bxa6 {[%emt 0:00:00]} 15. h3 {[%emt 0:02:48]} Nf6 {[%emt 0:00:02]} 16. Rd1 {[%emt 0:00:00]} Qe7 {[%emt 0:00:14]} 17. Be3 {[%emt 0:00:03]} Ne8 {[%emt 0:00:02]} 18. Qc2 {[%emt 0:00:18]} f5 {[%emt 0:00:02]} 19. exf5 {[%emt 0:01:00]} gxf5 {[%emt 0:00:00]} 20. Re1 {[%emt 0:00:01] [#]} Qf7 $146 {[%emt 0:03:23]} ({Predecessor:} 20... Rg8 21. Rad1 Bf6 22. g3 Qg7 23. Kh2 Kh8 24. Rg1 Qf7 25. Nd2 Nc7 26. f4 e4 {1-0 Yanayt,E (2217)-Atoufi,P (2279) USA tt ICC INT 2011 (9)}) 21. Rad1 {[%emt 0:00:19]} Rg8 {[%emt 0:00:27]} 22. Ne2 {[%emt 0:01:22] White is much more active. The black rooks are badly placed.} Be6 {[%emt 0:00:26]} 23. Ng3 {[%emt 0:00:07][%cal Oe3h6]} Kh8 {[%emt 0:01:56] [#] White leaves nothing to chance now.} ({Black should play} 23... e4 $14 24. Nd4 Bxd4 25. Rxd4 (25. Bxd4 Bxa2 26. Ra1 Bb3 $14) 25... Bd5) 24. Nh4 {[%emt 0:00:08]} (24. Qc3 $1 $18 {has better winning chances.}) 24... Rf8 {[%emt 0:00:06] [#]} (24... e4 $142) 25. Bd2 $1 $36 {[%emt 0:00:18][%mdl 2048] And now Bc3 would win. White has strong initiative.} f4 {[%emt 0:01:44]} (25... e4 $16) 26. Ng6+ $18 {[%emt 0:01:31]} Kg8 {[%emt 0:00:01]} 27. Nh5 {[%emt 0:00:28] A dynamic duo of knights.} (27. Nxe5 Bxe5 28. Rxe5 fxg3 29. fxg3 Qf2+ 30. Kh2 Ng7 $11) (27. Nxf8 fxg3 28. fxg3 Qxf8 $16) 27... Bh8 {[%emt 0:00:48]} (27... Bf5 {was called for.} 28. Qxf5 {[%mdl 64] Decoy} Qxf5 29. Ne7+ (29. Nxf8 $2 {loses.} Bxf8 30. g4 fxg3 $19 {[%mdl 64] Discovered Attack}) 29... Kh8 30. Nxf5 Rxf5) 28. Nxf8 {[%emt 0:01:57]} ({Less strong is} 28. Nxe5 Qxh5 29. Nxc6 Bf5 30. Qc4+ Kh7 $16) 28... Kxf8 {[%emt 0:00:00]} 29. g4 {[%emt 0:00:01] Black must now prevent Bc3.} fxg3 {[%emt 0:00:48]} 30. Bxh6+ {[%emt 0:00:12]} Kg8 {[%emt 0:00:02]} 31. Nxg3 {[%emt 0:00:01][%cal Bh5g3,Bg3e4,Be4f6,Bf6d5][%mdl 32]} Bxa2 {[%emt 0:00:25]} 32. Qe4 {[%emt 0:00:43]} Bd5 {[%emt 0:00:09]} 33. Qg4+ {[%emt 0:00:01]} Kh7 {[%emt 0:00:00]} 34. Qh4 {[%emt 0:00:17]} Kg8 {[%emt 0:00:26]} 35. Ne4 {[%emt 0:00:11]} Qf5 {[%emt 0:01:05]} (35... Bf6 $142 36. Nxf6+ Qxf6 37. Qg3+ Ng7) 36. Rd3 {[%emt 0:00:09]} Ng7 {[%emt 0:00:38]} 37. Nf6+ {[%emt 0:00:12]} Kf7 {[%emt 0:00:00]} 38. Nxd5 {[%emt 0:00:13]} Qxd3 {[%emt 0:00:01] Black is weak on the dark squares} 39. Qe7+ {[%emt 0:00:03] White mates.} Kg6 {[%emt 0:00:02]} 40. Qd6+ {[%emt 0:00:01]} Kf7 {[%emt 0:00:05]} 41. Qd7+ {[%emt 0:00:03] A cool game by Carlsen.   Weighted Error Value: White=0.29 (precise) /Black=0.62} 1-0

[Event "AI Cup Div-1 2023"]
[Site "Online"]
[Date "2023.09.25"]
[Round "1.3"]
[White "Firouzja, Alireza"]
[Black "Vachier-Lagrave, Maxime"]
[Result "0-1"]
[Annotator "TA"]
[ECO "B97"]
[WhiteElo "2777"]
[BlackElo "2727"]
[PlyCount "80"]
[EventDate "2023.09.18"]
[EventType "k.o."]
[EventCountry "NET"]
[SourceTitle "playchess.com"]
[Source "ChessBase"]
[SourceQuality "1"]
[TimeControl "900+3"]

{[%evp 18,80,0,0,0,0,0,0,0,0,0,0,-2,0,27,0,42,33,47,10,15,20,29,38,49,40,43,50,39,38,56,56,88,88,87,94,93,0,0,0,0,-100,-95,-138,-115,-107,0,-638,-638,-638,-638,-622,-97,-177,-137,-480,-477,-440,-440,-381,-119,-554,-486,-29996,-29997]} 1. e4 {[%emt 0:00:03]} c5 {[%emt 0:00:05]} 2. Nf3 {[%emt 0:00:01]} d6 {[%emt 0:00:01]} 3. d4 {[%emt 0:00:01]} cxd4 {[%emt 0:00:00]} 4. Nxd4 {[%emt 0:00:01]} Nf6 {[%emt 0:00:00]} 5. Nc3 {[%emt 0:00:00]} a6 {[%emt 0:00:00]} 6. Bg5 {[%emt 0:00:01]} e6 {[%emt 0:00:03]} 7. f4 {[%emt 0:00:01]} Qb6 {[%emt 0:00:00]} 8. Nb3 {[%emt 0:00:01]} Nbd7 {[%emt 0:00:01]} 9. Qe2 {[%emt 0:00:01]} Qc7 {[%emt 0:00:01]} 10. O-O-O {[%emt 0:00:02]} b5 {[%emt 0:00:13] B97: Sicilian Najdorf: Poisoned Pawn.} 11. a3 {[%emt 0:00:00]} Be7 {[%emt 0:00:03]} 12. Kb1 {[%emt 0:00:03]} Rb8 {[%emt 0:00:03] The position is equal.} 13. Qe1 {[%emt 0:00:01]} Bb7 {[%emt 0:00:02]} 14. Bd3 {[%emt 0:00:05]} h6 {[%emt 0:00:05]} 15. Bh4 {[%emt 0:00:02]} Nc5 {[%emt 0:00:03]} 16. f5 {[%emt 0:00:34] [#]} exf5 $146 {[%emt 0:01:35][%cal Rc5e4]} ({Predecessor:} 16... Nxd3 17. Rxd3 O-O 18. fxe6 fxe6 19. Nd4 Bc8 20. h3 Bd7 21. e5 dxe5 22. Bg3 Rb6 23. Bxe5 {½-½ De Andres Senra,S-Boudey,S EU-ch SC-OR/360 email 2020}) 17. Nxc5 {[%emt 0:02:09]} dxc5 {[%emt 0:00:11]} 18. exf5 {[%emt 0:02:43] aiming for Bg3.} O-O {[%emt 0:00:04] [#]} 19. Bxb5 {[%emt 0:00:36]} Bxg2 {[%emt 0:06:41]} (19... axb5 20. Bg3) 20. Rg1 $1 {[%emt 0:00:08]} (20. Bxa6 $2 Bxh1 21. Qxh1 Qa5 $19) (20. Bg3 Qb7 21. Bxb8 Rxb8 $17) 20... axb5 {[%emt 0:01:34]} 21. Rxg2 {[%emt 0:00:08] Re2 is the strong threat.} b4 {[%emt 0:00:01]} 22. Ne4 {[%emt 0:06:37]} Nxe4 {[%emt 0:02:25]} 23. Qxe4 {[%emt 0:00:05] White wants to mate with f6.} Bxh4 {[%emt 0:00:01]} 24. Qxh4 {[%emt 0:00:02] Intending Qf6 and mate.} Kh7 {[%emt 0:00:33]} 25. f6 {[%emt 0:01:25]} g6 {[%emt 0:00:04]} 26. Rd3 {[%emt 0:00:27][%cal Oh4h6] Qxh6+! would kill now.} Qe5 {[%emt 0:00:02] Threatens to win with ...bxa3.} (26... Qb7 $2 {gets mated.} 27. Qxh6+ Kxh6 28. Rh3#) 27. Rh3 {[%emt 0:00:38]} (27. Rxg6 $1 $16 Kxg6 28. Rg3+ Qg5 29. Qe4+ (29. Rxg5+ hxg5 30. Qe4+ Kxf6 $16) 29... Kxf6 30. Rxg5 hxg5 31. a4) 27... h5 $11 {[%emt 0:00:02] Strongly threatening ...bxa3.} 28. Rg5 {[%emt 0:00:06] Threatening mate with Qxh5+.} Qe2 {[%emt 0:00:02] And now ...bxa3 would win.} 29. Qf4 {[%emt 0:00:25]} (29. Rxh5+ $11 gxh5 30. Qg5 Qf1+ 31. Ka2 Qc4+ 32. Kb1 Qf1+ 33. Ka2 Qc4+ 34. Kb1 Qf1+) 29... Qe1+ $1 $40 {[%emt 0:01:32][%mdl 128] Black is out for blood.} (29... bxa3 $2 30. Rhxh5+ Kg8 31. Rxg6+ fxg6 32. Rh8+ Kf7 33. Rh7+ Ke6 34. Re7+ Kd5 35. Rxe2 $18) 30. Ka2 {[%emt 0:00:01]} Qe6+ {[%emt 0:00:03]} 31. Rb3 {[%emt 0:00:02]} c4 {[%emt 0:00:16]} (31... bxa3 $17 32. Qe5 Qxe5 33. Rxe5 axb2 34. Kxb2 Rbc8) 32. Rbg3 {[%emt 0:00:06][%mdl 8192] [#]} (32. Re3 $11 b3+ 33. cxb3 cxb3+ 34. Kb1 (34. Ka1 Rfd8 $17)) 32... b3+ $1 $19 {[%emt 0:00:04]} 33. cxb3 {[%emt 0:00:02]} cxb3+ {[%emt 0:00:01]} 34. Kb1 {[%emt 0:00:00][%cal Og5h5] White threatens Rxh5+! and mate.} Qe1+ $2 {[%emt 0:00:21]} (34... Qe2 {( -> ...Qc2+)} 35. Rg1 Rfd8) 35. Qc1 {[%emt 0:00:01]} Rfe8 {[%emt 0:00:06]} 36. Rc3 {[%emt 0:00:08][%mdl 8192]} (36. Rg1 $17 {is tougher.} Qxc1+ 37. Rxc1) 36... Qe4+ {[%emt 0:00:22]} 37. Ka1 {[%emt 0:00:01] [#]} Rbc8 $3 {[%emt 0:00:01][%mdl 512]} 38. Rg1 {[%emt 0:00:03] [#]} Qd4 $2 {[%emt 0:00:06]} 39. Rgg3 $2 {[%emt 0:00:04][%mdl 8192]} (39. Qd1 $17 {was the crucial defense.} Qxd1+ 40. Rxd1) 39... Rxc3 {[%emt 0:00:03]} 40. bxc3 {[%emt 0:00:05]} (40. Rxc3 $19 Re2 41. Rxb3) 40... Qf2 {[%emt 0:00:02] Magnificent play by Vachier-Lagrave!   Weighted Error Value: White=0.81/Black=0.36} 0-1